bitfinex/quotes_ETHUSD_20230113
["timestamp","ask_amount","ask_price","bid_price","bid_amount"]
[1673632833338,3.0266,1419.1,1418.9,1.16554355]
[1673632834330,7.04721,1419.0,1418.9,1.16554355]
[1673632834568,0.0220087,1419.0,1418.9,22.30867355]
[1673632834901,3.0266,1419.1,1418.9,1.21008458]
[1673632834902,0.5266,1419.1,1418.9,1.21008458]
[1673632835124,0.5266,1419.1,1418.9,1.16554355]
[1673632835730,0.5266,1419.1,1418.9,8.21322355]
[1673632836017,0.5266,1419.1,1418.9,10.49454604]
[1673632836260,0.15102398,1419.2,1418.9,28.19629876]
[1673632836593,0.15102398,1419.2,1418.9,29.38629876]
[1673632836802,0.15102398,1419.2,1419.1,1.19]
[1673632837015,0.15102398,1419.2,1419.1,18.88975272]
[1673632837319,0.15102398,1419.2,1419.1,28.70030712]
[1673632837896,0.15102398,1419.2,1419.1,27.51030712]
[1673632839208,30.54303268,1419.6,1419.1,30.89030712]
[1673632839421,30.54303268,1419.6,1419.5,1.579]
[1673632839742,30.54303268,1419.6,1419.5,22.71319]
[1673632839743,0.17303268,1419.6,1419.5,22.71319]
[1673632839893,0.17303268,1419.6,1419.5,30.5034183]
[1673632839894,0.15102398,1419.6,1419.5,30.5034183]
[1673632840319,30.55764559,1420.0,1419.6,2.5]
[1673632840543,0.18764559,1420.0,1419.9,1.579]
[1673632840791,0.16563689,1420.0,1419.8,8.61624]
[1673632841017,0.16563689,1420.0,1419.9,9.06790755]
[1673632841175,0.16563689,1420.0,1419.9,9.11244858]
[1673632841383,0.16563689,1420.0,1419.9,16.15518858]
[1673632841651,0.16563689,1420.0,1419.9,9.11244858]
[1673632841862,0.16563689,1420.0,1419.9,1.20808458]
[1673632842019,0.16563689,1420.0,1419.9,1.16354355]
[1673632842750,0.16563689,1420.0,1419.9,8.20628355]
[1673632842956,0.16563689,1420.0,1419.9,1.20808458]
[1673632843169,0.16563689,1420.0,1419.9,1.16354355]
[1673632844234,0.16563689,1420.0,1419.9,4.76987627]
[1673632844689,0.16563689,1420.0,1419.9,11.81261627]
[1673632845034,0.16563689,1420.0,1419.9,15.74857303]
[1673632845344,0.16563689,1420.0,1419.9,24.37031303]
[1673632845725,0.16563689,1420.0,1419.9,17.32757303]
[1673632846134,0.16563689,1420.0,1419.9,15.74857303]
[1673632846340,0.16563689,1420.0,1419.9,11.8571573]
[1673632846585,0.16563689,1420.0,1419.9,20.4728973]
[1673632847187,0.16563689,1420.0,1419.9,27.5156373]
[1673632847754,6.89e-06,1420.0,1419.9,29.1006373]
[1673632847919,6.89e-06,1420.0,1419.9,36.17897303]
[1673632848128,6.89e-06,1420.0,1419.9,35.65067303]
[1673632848768,6.89e-06,1420.0,1419.9,40.38181557]
[1673632849209,6.89e-06,1420.0,1419.9,35.65067303]
[1673632849421,6.89e-06,1420.0,1419.9,35.42067303]
[1673632849626,6.89e-06,1420.0,1419.9,35.41867303]
[1673632849812,6.89e-06,1420.0,1419.9,35.65067303]
[1673632850022,6.89e-06,1420.0,1419.9,35.42067303]
[1673632850270,6.89e-06,1420.0,1419.9,14.57086031]
[1673632850491,6.89e-06,1420.0,1419.9,1.20808458]
[1673632850700,6.89e-06,1420.0,1419.9,1.16354355]
[1673632851925,0.00316552,1420.0,1419.9,1.16354355]
[1673632853326,6.89e-06,1420.0,1419.9,1.16354355]
[1673632854797,6.89e-06,1420.0,1419.9,15.24902355]
[1673632855125,6.89e-06,1420.0,1419.9,19.52861004]
[1673632855337,6.89e-06,1420.0,1419.9,5.44313004]
[1673632856183,6.89e-06,1420.0,1419.9,1.20808458]
[1673632856399,7.04225689,1420.0,1419.9,1.16354355]
[1673632856584,14.10651559,1420.0,1419.9,1.16354355]
[1673632857125,7.06426559,1420.0,1419.9,1.16354355]
[1673632857342,0.02201559,1420.0,1419.9,1.16354355]
[1673632857508,7.04225689,1420.0,1419.9,1.16354355]
[1673632857860,23.64876559,1420.0,1419.9,1.16354355]
[1673632858056,0.02201559,1420.0,1419.9,1.16354355]
[1673632858265,6.89e-06,1420.0,1419.9,1.16354355]
[1673632858652,6.89e-06,1420.0,1419.9,8.20628355]
[1673632858865,6.89e-06,1420.0,1419.9,8.25082458]
[1673632859330,6.89e-06,1420.0,1419.9,1.20808458]
[1673632859552,6.89e-06,1420.0,1419.9,1.16354355]
[1673632860068,13.04225689,1420.0,1419.9,1.16354355]
[1673632860284,13.06426559,1420.0,1419.9,1.16354355]
[1673632860446,3.52201559,1420.0,1419.9,1.16354355]
[1673632860808,3.50000689,1420.0,1419.9,1.16354355]
[1673632861232,6.00000689,1420.0,1419.9,1.16354355]
[1673632861551,10.56426559,1420.0,1419.9,1.16354355]
[1673632861766,25.17696559,1420.0,1419.9,1.16354355]
[1673632861911,24.64876559,1420.0,1419.9,1.16354355]
[1673632862765,17.60651559,1420.0,1419.9,1.16354355]
[1673632862971,17.60651559,1420.0,1419.9,8.20628355]
[1673632862972,3.52201559,1420.0,1419.9,8.20628355]
[1673632863218,3.50000689,1420.0,1419.9,1.20808458]
[1673632863448,3.50000689,1420.0,1419.9,1.16354355]
[1673632863648,3.50000689,1420.0,1419.9,1.99004201]
[1673632864279,3.50000689,1420.0,1419.9,1.16354355]
[1673632864492,10.54225689,1420.0,1419.9,1.16354355]
[1673632864816,3.52201559,1420.0,1419.9,1.16354355]
[1673632864954,3.50000689,1420.0,1419.9,1.16354355]
[1673632865914,3.50000689,1420.0,1419.9,18.85535627]
[1673632866161,3.50000689,1420.0,1419.9,21.65317403]
[1673632866333,3.50000689,1420.0,1419.9,3.96136131]
[1673632866693,3.50000689,1420.0,1419.9,3.91682028]
[1673632866857,3.50000689,1420.0,1419.9,10.95956028]
[1673632867069,3.50000689,1420.0,1419.9,3.96136131]
[1673632867436,3.50000689,1420.0,1419.9,21.16354355]
[1673632867592,3.50000689,1420.0,1419.9,21.20808458]
[1673632867802,3.50000689,1420.0,1419.9,31.8571573]
[1673632868012,3.50000689,1420.0,1419.9,45.9426373]
[1673632868453,3.48396509,1420.0,1419.9,45.9426373]
[1673632868641,0.0220087,1420.2,1420.0,2.5]
[1673632868856,0.8344538,1420.4,1420.1,24.73158272]
[1673632869095,0.8344538,1420.4,1420.2,3.60633272]
[1673632869321,0.8344538,1420.4,1420.3,1.16354355]
[1673632870583,7.8747238,1420.4,1420.3,1.16354355]
[1673632870792,0.8564625,1420.4,1420.3,1.16354355]
[1673632871121,0.8344538,1420.4,1420.3,1.16354355]
[1673632871638,0.8344538,1420.4,1420.3,3.28575201]
[1673632873211,7.8747238,1420.4,1420.3,3.28575201]
[1673632873420,7.8967325,1420.4,1420.3,1.16354355]
[1673632874316,0.8564625,1420.4,1420.3,15.24506355]
[1673632874682,0.8344538,1420.4,1420.3,22.33036458]
[1673632874899,0.8344538,1420.4,1420.3,1.20808458]
[1673632875050,0.8344538,1420.4,1420.3,1.16354355]
[1673632875260,0.8344538,1420.4,1420.3,4.69394201]
[1673632875503,0.8344538,1420.4,1420.3,11.73470201]
[1673632875716,0.8344538,1420.4,1420.3,31.97106102]
[1673632875922,0.8344538,1420.4,1420.3,24.93030102]
[1673632876137,0.8344538,1420.4,1420.3,22.43030102]
[1673632876348,0.8344538,1420.4,1420.3,4.73848304]
[1673632876571,0.8344538,1420.4,1420.3,1.16354355]
[1673632876757,7.8747238,1420.4,1420.3,1.16354355]
[1673632876937,15.99448059,1420.4,1420.3,1.16354355]
[1673632877149,21.9772725,1420.4,1420.3,1.16354355]
[1673632877393,23.56348963,1420.4,1420.3,1.16354355]
[1673632877677,17.57495167,1420.4,1420.3,1.16354355]
[1673632877881,16.52321963,1420.4,1420.3,1.16354355]
[1673632879094,25.6784458,1420.4,1420.3,1.16354355]
[1673632879285,24.09222867,1420.4,1420.3,0.82196468]
[1673632880741,17.05195867,1420.4,1420.3,0.82196468]
[1673632881186,11.59011985,1420.4,1420.3,0.82196468]
[1673632881494,18.63038985,1420.4,1420.3,0.82196468]
[1673632881682,25.67065985,1420.4,1420.3,0.82196468]
[1673632881910,25.67056188,1420.4,1420.3,0.82196468]
[1673632882778,23.55560571,1420.4,1420.3,0.82196468]
[1673632883252,25.67056188,1420.4,1420.3,0.82196468]
[1673632883457,18.63029188,1420.4,1420.3,0.82196468]
[1673632884092,11.59002188,1420.4,1420.3,0.82196468]
[1673632884299,3.4871374,1420.4,1420.3,0.82196468]
[1673632884561,0.8344538,1420.4,1420.3,7.94492115]
[1673632884818,0.8344538,1420.4,1420.3,7.98946218]
[1673632884947,0.8344538,1420.4,1420.3,0.94870218]
[1673632885163,0.8344538,1420.4,1420.3,0.90416115]
[1673632886666,1.88680429,1420.4,1420.3,0.90416115]
[1673632886821,0.8344538,1420.4,1420.3,18.59201387]
[1673632887034,0.8344538,1420.4,1420.3,18.6365549]
[1673632887292,0.8344538,1420.4,1420.3,11.59363014]
[1673632887675,0.8344538,1420.4,1420.3,4.55287014]
[1673632887904,0.8344538,1420.4,1420.3,4.50832911]
[1673632888782,1.88680429,1420.4,1420.3,4.50832911]
[1673632888932,1.88680429,1420.4,1420.3,0.90199639]
[1673632889356,8.92707429,1420.4,1420.3,0.90199639]
[1673632889566,0.8564625,1420.4,1420.3,0.90199639]
[1673632889821,1.88680429,1420.4,1420.3,0.90199639]
[1673632890197,0.8344538,1420.4,1420.3,25.63060911]
[1673632890414,0.8344538,1420.4,1420.3,25.67515014]
[1673632890668,0.8344538,1420.4,1420.3,11.59363014]
[1673632890884,8.92707429,1420.4,1420.3,0.94653742]
[1673632891114,23.02962299,1420.4,1420.3,0.81979992]
[1673632891461,1.90881299,1420.4,1420.3,0.81979992]
[1673632891675,1.88680429,1420.4,1420.3,0.81979992]
[1673632892301,0.8344538,1420.4,1420.3,0.81979992]
[1673632892560,0.8344538,1420.4,1420.3,1.60588891]
[1673632892880,0.8344538,1420.4,1420.3,15.68740891]
[1673632893035,0.8344538,1420.4,1420.3,8.69118994]
[1673632893247,0.8344538,1420.4,1420.3,35.73194994]
[1673632894135,0.8344538,1420.4,1420.3,42.77270994]
[1673632894356,0.8344538,1420.4,1420.3,46.37904266]
[1673632894508,0.8344538,1420.4,1420.3,47.95804266]
[1673632895374,0.0220087,1420.6,1420.4,2.5]
[1673632895613,0.0220087,1420.6,1420.3,54.50651821]
[1673632895614,1.05235049,1420.7,1420.5,5.43233272]
[1673632895763,1.05235049,1420.7,1420.5,19.55616375]
[1673632896224,1.05235049,1420.7,1420.6,0.81979992]
[1673632896225,1.05435049,1420.7,1420.6,0.81979992]
[1673632896436,1.05235049,1420.7,1420.6,0.81979992]
[1673632896844,2.6306837,1420.7,1420.6,0.81979992]
[1673632897137,10.73206938,1420.7,1420.6,0.81979992]
[1673632897366,25.88222246,1420.7,1420.6,0.61875613]
[1673632897600,23.76726629,1420.7,1420.6,0.61875613]
[1673632897773,9.69286492,1420.7,1420.6,0.61875613]
[1673632897991,10.21770629,1420.7,1420.6,0.61875613]
[1673632898552,17.25964492,1420.7,1420.6,0.61875613]
[1673632899145,21.66950733,1420.7,1420.6,0.31465888]
[1673632899415,21.66950733,1420.7,1420.4,0.02953]
[1673632899416,24.82537223,1420.7,1420.4,0.02953]
[1673632899730,17.76361804,1420.5,1420.4,0.02953]
[1673632899874,16.20673615,1420.5,1420.4,0.02953]
[1673632900087,16.20673615,1420.5,1420.4,0.34418888]
[1673632900774,17.78576896,1420.5,1420.4,0.34418888]
[1673632901511,16.20673615,1420.5,1420.4,0.34418888]
[1673632901663,24.82550279,1420.5,1420.4,0.34418888]
[1673632901881,29.32013573,1420.5,1420.4,0.34418888]
[1673632902082,29.32013573,1420.5,1420.1,20.05854103]
[1673632902083,33.87288253,1420.5,1420.1,20.05854103]
[1673632902346,23.75597895,1420.2,1420.1,0.04454103]
[1673632902505,23.77798765,1420.2,1419.8,20.0]
[1673632902886,3.55287958,1420.1,1419.8,20.04454103]
[1673632903193,21.12675,1420.0,1419.8,20.04454103]
[1673632903505,14.1065087,1420.0,1419.8,20.04454103]
[1673632904378,22.72983828,1420.0,1419.8,20.04454103]
[1673632904529,2.5,1419.9,1419.8,20.04454103]
[1673632904731,2.5,1419.9,1419.8,25.65672785]
[1673632904732,7.04274,1419.9,1419.8,25.65672785]
[1673632904994,13.1969649,1420.3,1419.9,1.79666906]
[1673632904995,2.63257393,1420.3,1419.9,1.79666906]
[1673632905157,8.29795813,1420.5,1420.0,10.82814963]
[1673632905158,1.11925456,1420.4,1420.0,10.82814963]
[1673632905368,1.11925456,1420.4,1420.0,5.55574066]
[1673632905369,1.05325456,1420.4,1420.0,5.55574066]
[1673632905719,1.05325456,1420.4,1420.0,1.94940794]
[1673632905720,16.71339393,1420.4,1420.0,1.94940794]
[1673632905892,16.71339393,1420.4,1420.0,0.17966691]
[1673632905893,1.05325456,1420.3,1420.0,0.17966691]
[1673632906101,1.05325456,1420.3,1419.9,21.34841009]
[1673632906361,2.5,1420.2,1419.9,20.16841009]
[1673632906571,9.74276256,1420.3,1419.9,19.63811009]
[1673632906786,16.78398256,1420.3,1419.9,5.07932486]
[1673632906995,8.16331319,1420.3,1420.0,20.0]
[1673632907174,2.69857393,1420.3,1420.0,20.05854103]
[1673632907394,1.05325456,1420.3,1420.0,20.05854103]
[1673632907606,1.05325456,1420.3,1420.0,24.01317131]
[1673632907845,2.63257393,1420.3,1420.0,24.01317131]
[1673632908064,9.67359393,1420.3,1420.0,24.01317131]
[1673632908220,3.55325456,1420.2,1420.0,24.01317131]
[1673632908426,1.05325456,1420.2,1420.0,24.01317131]
[1673632908867,8.09455456,1420.2,1420.0,24.01317131]
[1673632909076,8.16055456,1420.2,1420.0,24.01317131]
[1673632909635,24.74315456,1420.2,1420.0,20.05854103]
[1673632909869,2.5,1420.1,1420.0,20.05854103]
[1673632910185,24.67850456,1420.1,1420.0,0.05854103]
[1673632910320,22.24450456,1420.1,1419.9,1.79666906]
[1673632910532,7.10775,1420.1,1419.9,3.98241609]
[1673632911169,0.066,1420.1,1419.9,3.98241609]
[1673632911379,7.04183,1420.1,1419.9,3.98241609]
[1673632911632,14.14966,1420.1,1419.9,3.98241609]
[1673632911949,15.20291456,1420.1,1419.9,3.98241609]
[1673632912167,14.14966,1420.1,1419.9,1.79666906]
[1673632912479,21.19149,1420.1,1419.9,1.79666906]
[1673632913008,25.74474456,1420.1,1419.9,1.79666906]
[1673632915572,1.05325456,1420.0,1419.9,1.79666906]
[1673632915784,23.36800456,1420.0,1419.9,1.79666906]
[1673632915995,23.43400456,1420.0,1419.9,1.79666906]
[1673632916792,22.38075,1420.0,1419.9,1.79666906]
[1673632918153,7.10825,1420.0,1419.9,1.79666906]
[1673632918368,0.066,1420.0,1419.9,1.79666906]
[1673632918581,18.70313456,1420.1,1419.9,1.79666906]
[1673632919136,25.74505456,1420.1,1419.9,1.79666906]
[1673632919660,2.5,1420.0,1419.9,1.79666906]
[1673632919816,18.82575456,1420.0,1419.9,1.79666906]
[1673632920032,27.51332393,1420.0,1419.9,1.79666906]
[1673632920256,35.83901528,1420.0,1419.9,1.79666906]
[1673632920443,41.82801072,1420.0,1419.9,1.79666906]
[1673632920676,42.35445052,1420.0,1419.9,1.79666906]
[1673632921764,44.98664948,1420.0,1419.9,1.79666906]
[1673632921930,42.88089031,1420.0,1419.9,1.79666906]
[1673632922149,44.98723817,1420.0,1419.9,1.79666906]
[1673632923137,41.8272733,1420.0,1419.9,1.79666906]
[1673632923343,43.93362116,1420.0,1419.9,1.79666906]
[1673632923962,44.16350762,1420.0,1419.9,1.79666906]
[1673632924180,42.58503921,1420.0,1419.9,1.79666906]
[1673632924408,47.99903921,1420.0,1419.5,0.10696596]
[1673632924544,1.188,1419.7,1419.5,0.04842493]
[1673632924752,3.688,1419.7,1419.5,0.04842493]
[1673632924978,22.31569,1419.6,1419.5,0.04842493]
[1673632925199,22.38169,1419.6,1419.5,0.04842493]
[1673632925630,23.56969,1419.6,1419.5,0.04842493]
[1673632926068,26.56969,1419.6,1419.5,0.04842493]
[1673632926380,26.56969,1419.6,1419.5,4.93e-06]
[1673632926381,35.81702272,1419.6,1419.5,4.93e-06]
[1673632926596,37.39774036,1419.6,1419.5,4.93e-06]
[1673632926835,5.405,1420.0,1419.5,4.93e-06]
[1673632926836,49.04560885,1421.0,1420.3,2.485]
[1673632926972,36.25886469,1421.8,1420.3,2.485]
[1673632926973,26.69420527,1421.8,1421.2,7.03584]
[1673632927338,32.00753365,1421.8,1421.4,28.14124]
[1673632927546,32.00753365,1421.8,1421.5,7.49117]
[1673632927547,26.76020527,1421.8,1421.5,7.49117]
[1673632927706,29.71064897,1421.8,1421.6,7.11548]
[1673632928014,29.71064897,1421.8,1421.3,10.84987929]
[1673632928223,29.71064897,1421.8,1421.3,0.06822873]
[1673632928470,30.23824897,1421.8,1421.4,0.5277]
[1673632928720,30.23824897,1421.8,1421.2,25.13432382]
[1673632928721,26.76020527,1421.8,1421.2,25.13432382]
[1673632928903,26.76020527,1421.8,1421.5,0.00222842]
[1673632929117,26.76020527,1421.8,1421.5,20.00222842]
[1673632929286,26.76020527,1421.8,1421.5,20.06822842]
[1673632929483,0.64546,1421.9,1421.5,34.13769842]
[1673632929696,0.0020001,1422.2,1421.6,14.46616401]
[1673632929933,0.0020001,1422.2,1421.7,21.10282811]
[1673632930152,0.0020001,1422.2,1421.8,5.5]
[1673632930371,0.0020001,1422.2,1421.9,10.23]
[1673632930688,0.0020001,1422.2,1421.9,30.296]
[1673632930901,0.0020001,1422.2,1422.0,14.06468]
[1673632931075,0.0020001,1422.2,1422.1,2.5]
[1673632931281,0.0020001,1422.2,1422.1,2.73]
[1673632931737,0.0020001,1422.2,1422.1,0.23]
[1673632931914,0.0020001,1422.2,1422.0,0.066]
[1673632932124,0.0020001,1422.2,1421.9,22.451]
[1673632932739,0.0020001,1422.2,1422.0,2.5]
[1673632933004,0.0020001,1422.2,1422.1,7.26185]
[1673632933166,0.0020001,1422.2,1422.1,3.8235]
[1673632933382,0.0020001,1422.2,1422.1,3.0]
[1673632933830,0.0020001,1422.2,1422.1,3.23]
[1673632934210,0.0020001,1422.2,1422.1,3.0]
[1673632934661,0.009005,1422.3,1422.2,1.4180002]
[1673632935056,0.009005,1422.3,1422.2,0.0040002]
[1673632935477,0.009005,1422.3,1422.2,1.4180002]
[1673632936991,0.0051624,1422.5,1422.4,0.01801]
[1673632937206,0.76798964,1422.5,1422.4,2.38001]
[1673632937382,0.76798964,1422.5,1422.4,0.29128691]
[1673632937571,1.5621624,1422.5,1422.4,0.29128691]
[1673632937787,15.6219024,1422.5,1422.2,1.1820002]
[1673632937999,0.0711624,1422.5,1422.2,1.1820002]
[1673632938252,0.0711624,1422.5,1422.4,1.178]
[1673632938253,0.0031624,1422.5,1422.4,1.178]
[1673632939783,1.5601624,1422.5,1422.4,1.178]
[1673632940022,1.5601624,1422.5,1422.3,1.184]
[1673632940023,15.6199024,1422.5,1422.3,1.184]
[1673632940234,15.6859024,1422.5,1422.3,1.184]
[1673632941254,8.6560324,1422.5,1422.3,1.184]
[1673632941517,1.6261624,1422.5,1422.3,1.184]
[1673632941675,7.62311,1422.6,1422.5,3.09201845]
[1673632941886,13.36304317,1422.6,1422.5,1.51077392]
[1673632945276,20.39285317,1422.6,1422.5,1.51077392]
[1673632945487,20.39285317,1422.6,1422.5,0.81895417]
[1673632946218,20.39285317,1422.6,1422.2,0.0040002]
[1673632946457,28.12148,1422.4,1422.2,0.0040002]
[1673632946638,28.18748,1422.4,1422.2,0.0040002]
[1673632946846,12.77950062,1422.4,1422.2,0.0040002]
[1673632947202,19.56172,1422.3,1422.2,0.0040002]
[1673632947549,19.62772,1422.3,1422.2,0.0040002]
[1673632947690,22.86184206,1422.3,1422.2,0.0040002]
[1673632947905,22.86184206,1422.3,1421.7,20.066]
[1673632948530,2.0,1422.2,1421.7,20.066]
[1673632948740,17.37349423,1422.1,1421.7,20.066]
[1673632948970,17.43949423,1422.1,1421.7,20.066]
[1673632949211,1.74394942,1422.0,1421.7,20.066]
[1673632949422,3.37529423,1422.1,1422.0,2.90969419]
[1673632949642,17.37324423,1422.1,1422.0,2.90969419]
[1673632949955,17.43924423,1422.1,1422.0,2.90969419]
[1673632950145,20.18769965,1422.1,1422.0,2.90969419]
[1673632950312,2.5,1422.0,1421.8,0.066]
[1673632950668,30.63451863,1421.9,1421.7,0.066]
[1673632950886,34.30685135,1421.9,1421.5,0.03612075]
[1673632951054,3.94458514,1421.8,1421.5,0.03612075]
[1673632951260,28.13532,1421.7,1421.5,0.03612075]
[1673632951523,28.20132,1421.7,1421.5,0.03612075]
[1673632953788,14.06864,1421.6,1421.5,0.03612075]
[1673632953995,20.24097272,1421.6,1421.5,0.03612075]
[1673632954241,27.19563599,1421.6,1421.3,20.066]
[1673632954521,28.14124,1421.4,1421.3,0.052]
[1673632954779,28.20724,1421.4,1421.1,1.04751018]
[1673632954940,0.5238,1421.3,1421.1,1.04751018]
[1673632955150,0.066,1421.4,1421.3,1.5714]
[1673632955440,7.09938,1421.8,1421.3,7.25173272]
[1673632955730,7.09938,1421.8,1421.5,2.061]
[1673632955731,14.13314,1421.8,1421.5,2.061]
[1673632956049,14.06774,1421.7,1421.5,2.061]
[1673632956206,14.13374,1421.7,1421.5,2.061]
[1673632956417,2.44585522,1421.7,1421.4,0.5277]
[1673632956622,10.36160874,1421.7,1421.4,0.5277]
[1673632956841,2.5,1421.6,1421.3,2.0991]
[1673632957207,10.42760874,1421.7,1421.3,1.5714]
[1673632957208,21.10446,1421.5,1421.3,1.5714]
[1673632957408,21.17046,1421.5,1421.3,1.5714]
[1673632958260,0.066,1421.5,1421.3,1.5714]
[1673632958407,14.06976,1421.5,1421.3,1.5714]
[1673632958625,10.41228066,1421.5,1421.4,1.58]
[1673632959194,17.44716066,1421.5,1421.4,1.58]
[1673632959772,10.41228066,1421.5,1421.4,1.58]
[1673632959983,17.44716066,1421.5,1421.4,1.58]
[1673632960242,17.44716066,1421.5,1421.3,3.1384]
[1673632960879,0.066,1421.5,1421.4,1.58]
[1673632961049,0.066,1421.6,1421.4,1.58]
[1673632961266,0.066,1421.6,1421.4,1.568]
[1673632961267,7.03482,1421.5,1421.4,1.568]
[1673632961477,0.066,1421.5,1421.4,21.13889272]
[1673632961819,14.58977,1421.9,1421.4,7.66197272]
[1673632961820,7.03394,1421.7,1421.4,7.66197272]
[1673632962036,7.03394,1421.7,1421.6,1.574]
[1673632962037,7.09994,1421.7,1421.6,1.574]
[1673632962249,7.09994,1421.7,1421.6,5.33773272]
[1673632962250,0.066,1421.7,1421.6,5.33773272]
[1673632962461,7.03286,1421.9,1421.6,5.40373272]
[1673632962624,14.13201,1421.9,1421.8,1.58]
[1673632963242,7.09886,1421.9,1421.8,1.58]
[1673632963458,9.47833095,1421.9,1421.8,1.58]
[1673632963719,17.03499095,1421.9,1421.8,1.58]
[1673632963984,16.51119095,1421.9,1421.6,2.489]
[1673632964154,16.51119095,1421.9,1421.7,1.58]
[1673632965603,18.46851632,1421.9,1421.6,1.567]
[1673632965774,2.5,1421.8,1421.5,21.10649043]
[1673632966145,21.10149,1421.7,1421.6,1.74522766]
[1673632966363,21.16749,1421.7,1421.6,1.74522766]
[1673632966723,21.16749,1421.7,1421.6,4.86669895]
[1673632966945,19.30591405,1421.7,1421.6,4.86669895]
[1673632967161,18.25877873,1421.7,1421.6,4.86669895]
[1673632968728,14.53552644,1421.7,1421.6,1.74522766]
[1673632970132,14.53552644,1421.7,1421.6,4.34463279]
[1673632970313,16.69243808,1421.7,1421.6,4.34463279]
[1673632970525,19.07214753,1421.7,1421.6,6.42439529]
[1673632970740,26.62977753,1421.7,1421.6,1.62599772]
[1673632970986,26.62977753,1421.7,1421.6,2.6000526]
[1673632971293,26.62977753,1421.7,1421.6,1.55999772]
[1673632971550,26.62977753,1421.7,1421.6,3.63976022]
[1673632971703,26.62977753,1421.7,1421.6,2.0797625]
[1673632971915,26.10597753,1421.7,1421.6,2.0797625]
[1673632972167,30.34719845,1421.7,1421.6,3.63966855]
[1673632973714,30.34719845,1421.7,1421.6,1.55990605]
[1673632973926,2.5,1421.6,1421.5,3.6397507]
[1673632974119,27.16463848,1421.6,1421.5,1.5599882]
[1673632974328,27.23063848,1421.6,1421.5,1.5599882]
[1673632974749,24.73063848,1421.6,1421.5,1.5599882]
[1673632975116,24.73063848,1421.6,1421.5,3.6397507]
[1673632975490,21.69276,1421.6,1421.4,3.18747129]
[1673632975694,21.69276,1421.6,1421.5,2.0795998]
[1673632975695,21.16896,1421.6,1421.5,2.0795998]
[1673632977069,21.16896,1421.6,1421.5,3.63976434]
[1673632977477,16.51466287,1421.6,1421.5,2.0795998]
[1673632977814,16.46466287,1421.6,1421.5,4.67960605]
[1673632978318,16.46466287,1421.6,1421.5,2.0795998]
[1673632978528,16.46466287,1421.6,1421.5,1.56007428]
[1673632978529,18.81340884,1421.6,1421.5,1.56007428]
[1673632978790,22.12403589,1421.6,1421.5,1.56007428]
[1673632979080,22.64783589,1421.6,1421.4,3.70567408]
[1673632979233,22.64783589,1421.6,1421.5,1.56007428]
[1673632979404,34.21561833,1421.5,1421.4,4.74560605]
[1673632979634,34.28161833,1421.5,1421.4,4.67960605]
[1673632980091,21.17046,1421.5,1421.4,2.60000625]
[1673632980473,21.17046,1421.5,1421.4,4.68121186]
[1673632980683,21.17046,1421.5,1421.4,4.18000625]
[1673632981019,21.17046,1421.5,1421.4,4.18263827]
[1673632982837,21.17046,1421.5,1421.4,4.70147129]
[1673632982991,21.17046,1421.5,1421.4,4.18456589]
[1673632983834,0.066,1421.5,1421.4,7.66067644]
[1673632984052,0.066,1421.8,1421.5,2.5]
[1673632984243,14.06528,1422.0,1421.7,2.60361206]
[1673632984244,7.09851,1422.0,1421.7,2.60361206]
[1673632984448,14.13102,1422.0,1421.9,1.04143266]
[1673632984914,14.13102,1422.0,1421.8,1.04849985]
[1673632985133,14.13102,1422.0,1421.9,1.579]
[1673632985448,0.066,1422.0,1421.9,1.579]
[1673632985640,7.03216,1422.1,1421.9,2.62043266]
[1673632985641,14.1305,1422.1,1421.9,2.62043266]
[1673632985815,7.09816,1422.1,1421.9,1.579]
[1673632986022,14.06468,1422.0,1421.9,1.579]
[1673632986254,14.13068,1422.0,1421.9,1.579]
[1673632987555,12.26941424,1422.0,1421.9,1.579]
[1673632987704,0.066,1422.0,1421.9,1.579]
[1673632987920,7.09809,1422.1,1421.9,1.579]
[1673632988379,14.13019,1422.1,1421.9,1.579]
[1673632988586,21.16204,1422.1,1421.9,5.35053944]
[1673632988815,21.16204,1422.1,1421.9,5.41653944]
[1673632988986,21.16204,1422.1,1421.9,1.81020672]
[1673632989334,14.12994,1422.1,1422.0,1.58]
[1673632989561,14.12994,1422.1,1422.0,1.75452067]
[1673632989921,21.16179,1422.1,1422.0,1.75452067]
[1673632990146,14.1297,1422.1,1422.0,1.58]
[1673632990808,21.16155,1422.1,1422.0,1.58]
[1673632991020,14.1297,1422.1,1422.0,1.58]
[1673632991175,21.16155,1422.1,1422.0,1.58]
[1673632991668,14.1297,1422.1,1422.0,1.58]
[1673632991810,21.16155,1422.1,1422.0,1.58]
[1673632992024,14.1297,1422.1,1422.0,1.58]
[1673632992246,0.066,1422.1,1422.0,5.34433272]
[1673632992457,0.73700927,1422.4,1422.0,32.33193885]
[1673632992668,0.73700927,1422.4,1422.3,1.575]
[1673632992906,0.20970927,1422.4,1422.3,1.575]
[1673632993701,7.24007927,1422.4,1422.3,1.575]
[1673632994068,14.33644927,1422.4,1422.3,1.575]
[1673632994244,7.83337927,1422.4,1422.3,1.575]
[1673632994448,0.27570927,1422.4,1422.3,1.575]
[1673632994662,0.20970927,1422.4,1422.3,1.575]
[1673632994874,14.27044927,1422.4,1422.3,1.575]
[1673632995071,24.05459771,1422.4,1422.1,1.637]
[1673632995283,24.05459771,1422.4,1422.1,1.571]
[1673632995284,23.52729771,1422.4,1422.1,1.571]
[1673632995504,23.52729771,1422.4,1422.1,1.171]
[1673632995721,14.8669079,1422.4,1422.1,1.171]
[1673632996141,15.56091717,1422.9,1422.4,14.415]
[1673632996142,1.06145882,1422.9,1422.4,14.415]
[1673632996344,0.31129045,1423.3,1422.6,2.83336557]
[1673632996594,0.31129045,1423.3,1422.9,7.41]
[1673632996595,0.21529045,1423.3,1422.9,7.41]
[1673632996764,0.21529045,1423.3,1423.0,7.2573]
[1673632996959,0.21529045,1423.3,1423.1,4.93981042]
[1673632996960,9.045e-05,1423.3,1423.1,4.93981042]
[1673632997176,0.007,1423.8,1423.4,0.43889088]
[1673632997486,0.007,1423.8,1423.6,1.575]
[1673632998026,0.007,1423.9,1423.6,14.04873]
[1673632998229,0.007,1423.9,1423.7,0.5269]
[1673632998461,0.709983,1423.9,1423.7,20.0]
[1673632998669,0.007,1423.9,1423.8,1.58]
[1673632999110,0.007,1423.9,1423.8,8.60345]
[1673632999270,0.007,1423.9,1423.8,1.646]
[1673632999485,0.007,1423.9,1423.8,1.58]
[1673633000547,0.007,1423.9,1423.8,3.16]
[1673633000966,0.007,1423.9,1423.8,3.6868]
[1673633001298,0.0807639,1424.3,1423.9,2.5]